fUST/lending_fUST_20251001
["ID","MTS","AMOUNT","RATE_DAILY","PERIOD"]
[388637473,1759283433376,-151.63912119,0.0002129,2]
[388637475,1759283433385,-210.43058309,0.0002129,2]
[388637477,1759283433395,-201.24386191,0.0002129,2]
[388637479,1759283433404,-1079.0,0.00021306,2]
[388637481,1759283433413,-251.71065916,0.00021321,2]
[388637483,1759283433422,-1604.0,0.00021327,2]
[388637484,1759283433432,-500.86598004,0.00021373,2]
[388637486,1759283433442,-1182.62528272,0.00021545,2]
[388637488,1759283433451,-358.0,0.00021613,2]
[388637490,1759283433459,-465.37,0.00021714,3]
[388637492,1759283433469,-419.69946173,0.00021717,2]
[388637494,1759283433479,-1603.0,0.00021724,2]
[388637496,1759283433489,-1079.0,0.00021778,2]
[388637498,1759283433499,-698.09,0.00021813,3]
[388637500,1759283433508,-155.47559791,0.00021821,2]
[388637502,1759283433517,-1000.0,0.00021821,2]
[388637504,1759283433527,-5355.30902636,0.00021823,2]
[388637506,1759283433536,-652.0,0.000219,2]
[388637513,1759283433600,-357.0,0.00021914,2]
[388637515,1759283433610,-1008.0,0.00021914,2]
[388637517,1759283433619,-155.013571,0.00021918,2]
[388637518,1759283433629,-1603.0,0.00021988,2]
[388637519,1759283433638,-185.97336185,0.0002199,2]
[388637520,1759283433646,-1785.0,0.00022008,2]
[388637521,1759283433655,-251.71065916,0.00022012,2]
[388637522,1759283433664,-1079.0,0.00022042,2]
[388637523,1759283433675,-155854.70440108,0.00022073,2]
[388637524,1759283433690,-455.56932553,0.00022073,2]
[388637525,1759283433701,-16029.08529096,0.00022073,2]
[388637526,1759283433760,665.09933926,0.0002011,13]
[388637745,1759283437873,-1412.0,0.00020963,2]
[388637746,1759283437883,-465.08369585,0.00022073,2]
[388637747,1759283437895,-3324.99031164,0.00022073,2]
[388637748,1759283437906,-1896.94150928,0.00022073,2]
[388637749,1759283437917,-711.80323751,0.00022073,2]
[388637750,1759283437930,-1048.54976761,0.00022073,2]
[388638160,1759284122759,200.0,0.00028,120]
[388638161,1759284326995,2201.0,0.00034571,60]
[388638162,1759284341415,1200.0,0.00028,120]
[388638163,1759284443090,916.0,0.000284,120]
[388638190,1759284597507,8047.42582911,0.00034572,66]
[388638228,1759284632020,-161.42,0.000195,2]
[388638230,1759284632029,-330.45812,0.00019736,2]
[388638232,1759284632038,-189.4056409,0.00019754,2]
[388638234,1759284632052,-150.0,0.000198,2]
[388638236,1759284632062,-226.65,0.000198,2]
[388638238,1759284632071,-300.0,0.00020738,2]
[388638240,1759284632081,-238.0,0.00020738,2]
[388638242,1759284632091,-1200.0,0.00020738,2]
[388638244,1759284632100,-300.0,0.00020738,2]
[388638246,1759284632109,-300.0,0.00020738,2]
[388638248,1759284632118,-300.0,0.00020738,2]
[388638250,1759284632130,-23362.04216927,0.00020739,2]
[388638252,1759284632140,-1200.0,0.00020739,2]
[388638254,1759284632149,-165.18,0.00020739,2]
[388638256,1759284632158,-2000.0,0.00020743,2]
[388638258,1759284632167,-1837.867,0.00020743,2]
[388638260,1759284632176,-500.0,0.00020773,2]
[388638262,1759284632184,-207.8201128,0.00020815,2]
[388638263,1759284632193,-165.18714479,0.00021013,2]
[388638265,1759284632203,-1365.0,0.00021096,2]
[388638267,1759284632212,-1365.0,0.00021429,2]
[388638269,1759284632221,-886.96896204,0.00021545,2]
[388638271,1759284632230,-250.0,0.00021721,2]
[388638273,1759284632239,-250.0,0.00021721,2]
[388638275,1759284632248,-250.0,0.00021721,2]
[388638277,1759284632257,-250.0,0.00021721,2]
[388638279,1759284632266,-250.0,0.00021721,2]
[388638281,1759284632274,-250.0,0.00021721,2]
[388638283,1759284632283,-250.0,0.00021721,2]
[388638285,1759284632292,-250.0,0.00021721,2]
[388638287,1759284632302,-250.0,0.00021721,2]
[388638289,1759284632311,-250.0,0.00021721,2]
[388638291,1759284632320,-250.0,0.00021721,2]
[388638293,1759284632329,-277.90458687,0.00021721,2]
[388638294,1759284632338,-1000.0,0.00021721,2]
[388638296,1759284632347,-151.0,0.00021721,2]
[388638299,1759284632356,-1000.0,0.00021721,2]
[388638300,1759284632366,-1025.7085913,0.00021721,2]
[388638302,1759284632375,-421.67231711,0.00021721,2]
[388638304,1759284632384,-580.82836388,0.00021721,2]
[388638306,1759284632393,-200.0,0.00021721,2]
[388638308,1759284632403,-200.0,0.00021721,2]
[388638310,1759284632412,-250.0,0.00021721,2]
[388638312,1759284632421,-200.0,0.00021721,2]
[388638314,1759284632430,-250.0,0.00021721,2]
[388638316,1759284632439,-200.0,0.00021721,2]
[388638318,1759284632448,-250.0,0.00021721,2]
[388638320,1759284632457,-200.0,0.00021721,2]
[388638322,1759284632466,-250.0,0.00021721,2]
[388638324,1759284632475,-200.0,0.00021721,2]
[388638325,1759284632484,-250.0,0.00021721,2]
[388638327,1759284632493,-200.0,0.00021721,2]
[388638329,1759284632502,-250.0,0.00021721,2]
[388638331,1759284632513,-200.0,0.00021721,2]
[388638333,1759284632523,-250.0,0.00021721,2]
[388638335,1759284632533,-203.31526402,0.00021721,2]
[388638337,1759284632542,-250.0,0.00021721,2]
[388638339,1759284632551,-250.0,0.00021721,2]
[388638341,1759284632561,-250.0,0.00021721,2]
[388638343,1759284632570,-250.0,0.00021721,2]
[388638345,1759284632579,-250.0,0.00021721,2]
[388638347,1759284632590,-250.0,0.00021721,2]
[388638349,1759284632598,-250.0,0.00021721,2]
[388638351,1759284632607,-283.60399792,0.00021721,2]
[388638353,1759284632616,-500.0,0.00021721,2]
[388638355,1759284632625,-500.0,0.00021721,2]
[388638357,1759284632634,-500.0,0.00021721,2]
[388638359,1759284632643,-500.0,0.00021721,2]
[388638361,1759284632652,-500.0,0.00021721,2]
[388638362,1759284632661,-333.08666123,0.00021772,2]
[388638364,1759284632670,-419.86400961,0.00021773,2]
[388638366,1759284632679,-501.0001616,0.00021773,2]
[388638368,1759284632689,-502.92532001,0.00021773,2]
[388638370,1759284632699,-500.0,0.00021773,2]
[388638372,1759284632707,-501.66607974,0.00021773,2]
[388638374,1759284632718,-500.12523798,0.00021773,2]
[388638376,1759284632727,-30.92977737,0.00021773,2]
[388638767,1759284637966,-831.46957929,0.00020639,2]
[388638933,1759284639966,-6.79818831,0.00020639,2]
[388638934,1759284639975,-296.13030179,0.00020738,2]
[388638935,1759284639985,-253.72521027,0.00020738,2]
[388638936,1759284640076,-246.27478973,0.00020738,2]
[388638937,1759284640087,-330.32403385,0.00020738,2]
[388639267,1759284646208,-169.67596615,0.00020738,2]
[388639269,1759284646217,-500.0,0.00020738,2]
[388639271,1759284646227,-500.0,0.00020738,2]
[388639273,1759284646236,-500.0,0.00020738,2]
[388639275,1759284646245,-494.73554724,0.00020738,2]
[388639277,1759284646254,-500.0,0.00020738,2]
[388639279,1759284646263,-500.0,0.00020738,2]
[388639281,1759284646272,-500.0,0.00020738,2]
[388639283,1759284646281,-500.0,0.00020738,2]
[388639286,1759284646291,-77.35695994,0.00020738,2]
[388640025,1759284739118,3481.1,0.0002876,120]
[388640026,1759284907257,178.91,0.00028767,120]
[388640035,1759285649266,218.38725129,0.00034579,120]
[388640038,1759285707901,448.53019358,0.00034579,120]
[388640040,1759285715278,16065.14361545,0.00018,2]
[388640101,1759285832480,-6843.06816883,0.00020632,2]
[388640102,1759285832490,-300.0,0.00020731,2]
[388640104,1759285832500,-300.0,0.00020731,2]
[388640106,1759285832510,-300.0,0.00020731,2]
[388640107,1759285832519,-1200.0,0.00020731,2]
[388640109,1759285832528,-300.0,0.00020731,2]
[388640110,1759285832537,-1200.0,0.00020732,2]
[388640113,1759285832546,-151.0,0.00021353,2]
[388640116,1759285832556,-35363.0283442,0.00021365,2]
[388640119,1759285832566,-500.0,0.00021367,2]
[388640122,1759285832576,-500.0,0.00021367,2]
[388640126,1759285832585,-644.06991773,0.00021367,2]
[388640130,1759285832593,-500.0,0.00021367,2]
[388640134,1759285832608,-206.16107189,0.00021367,2]
[388640138,1759285832619,-293.83892811,0.00021367,2]
[388640140,1759285832629,-209.1365874,0.00021367,2]
[388640142,1759285832641,-290.8634126,0.00021367,2]
[388640144,1759285832650,-244.46477683,0.00021367,2]
[388640146,1759285832660,-49.89419396,0.00021367,2]
[388640172,1759285838169,-500.0,0.00021364,2]
[388640174,1759285838178,-5.75395028,0.00021364,2]
[388640326,1759286505040,155.00048406,0.00034587,60]
[388640329,1759286790079,161.0,0.000191,3]
[388640331,1759286797756,161.0,0.000191,3]
[388640332,1759286814775,1000.0,0.00034662,60]
[388640339,1759286864396,1000.0,0.00034662,60]
[388640340,1759286872550,163.0,0.000191,3]
[388640341,1759286887081,163.0,0.00025,30]
[388640342,1759286897788,163.0,0.000287,120]
[388640343,1759286900595,163.0,0.000287,120]
[388640345,1759286930479,162.34310534,0.00025,30]
[388640385,1759287035773,-204.8013467,0.000202,2]
[388640386,1759287035783,-95.63850099,0.000202,2]
[388640387,1759287035794,-76.04959046,0.000202,2]
[388640388,1759287035803,-274.94,0.000203,2]
[388640389,1759287035812,-279.44,0.000203,2]
[388640390,1759287035821,-357.0,0.00020927,2]
[388640391,1759287035831,-166.74114248,0.00020986,3]
[388640392,1759287035840,-1315.76774029,0.00021023,2]
[388640393,1759287035851,-844.23225971,0.00021023,2]
[388640394,1759287035861,-177.0,0.00021067,2]
[388640395,1759287035869,-177.0,0.0002121,2]
[388640396,1759287035878,-1741.0706389,0.00021219,2]
[388640397,1759287035887,-1200.0,0.00021335,2]
[388640398,1759287035896,-26683.48380751,0.00021335,2]
[388640399,1759287035910,-1036.18307208,0.00021335,2]
[388640400,1759287035921,-363.68629987,0.00021335,2]
[388640402,1759287035941,-2025.9229749,0.00021335,2]
[388641442,1759287756621,800.0,0.00028767,120]
[388641443,1759287763784,800.0,0.00028767,120]
[388641444,1759287771719,809.0,0.00028767,120]
[388641446,1759287806110,500.0,0.00019178,2]
[388641451,1759287998725,5500.0,0.00019178,2]
[388641481,1759288232751,-666.0,0.00020413,2]
[388641482,1759288232760,-1200.0,0.00020798,2]
[388641483,1759288232769,-1200.0,0.00020798,2]
[388641484,1759288232780,-183.8640025,0.000209,2]
[388641485,1759288232789,-300.0,0.00020934,2]
[388641486,1759288232799,-300.0,0.00020934,2]
[388641487,1759288232808,-300.0,0.00020934,2]
[388641488,1759288232819,-300.0,0.00020934,2]
[388641489,1759288232828,-330.0,0.00020935,2]
[388641490,1759288232838,-330.0,0.00020981,2]
[388641491,1759288232848,-330.0,0.00021036,2]
[388641492,1759288232865,-665.22672153,0.00021119,2]
[388641493,1759288232874,-330.0,0.00021227,2]
[388641494,1759288232885,-330.0,0.00021285,2]
[388641495,1759288232894,-151.0,0.00021358,2]
[388641496,1759288232904,-250.0,0.00021359,2]
[388641497,1759288232913,-250.0,0.00021359,2]
[388641498,1759288232922,-250.0,0.00021359,2]
[388641499,1759288232931,-250.0,0.00021359,2]
[388641500,1759288232940,-536.55661554,0.0002137,2]
[388641501,1759288232951,-500.0,0.0002137,2]
[388641502,1759288232960,-500.0,0.0002137,2]
[388641503,1759288232969,-500.0,0.0002137,2]
[388641504,1759288232979,-500.0,0.0002137,2]
[388641505,1759288232988,-500.0,0.0002137,2]
[388641506,1759288232998,-500.0,0.0002137,2]
[388641507,1759288233007,-500.0,0.0002137,2]
[388641508,1759288233017,-607.49116823,0.0002137,2]
[388641509,1759288233027,-500.0,0.0002137,2]
[388641510,1759288233037,-380.07675729,0.0002137,2]
[388641511,1759288233047,-500.0,0.0002137,2]
[388641512,1759288233056,-500.0,0.0002137,2]
[388641513,1759288233066,-500.0,0.0002137,2]
[388641514,1759288233075,-500.0,0.0002137,2]
[388641515,1759288233085,-500.0,0.0002137,2]
[388641516,1759288233094,-155.25233914,0.0002137,2]
[388641517,1759288233103,-455.8146973,0.0002137,2]
[388641586,1759288542570,340.1685936,0.00034665,120]
[388641600,1759289305704,8236.35588791,0.00018,2]
[388641601,1759289312237,11644.38474497,0.00015,2]
[388641602,1759289313958,586.87081399,0.000149,2]
[388641648,1759289443148,-350.0,0.00019286,2]
[388641665,1759289639901,1421.35382716,0.00018322,2]
[388641670,1759290239089,299.92512029,0.00018322,2]
[388641671,1759290240832,1198.50078069,0.00018322,2]
[388641700,1759290632148,-4038.6835485,0.0002,2]
[388641701,1759290632163,-755.62089447,0.00020878,2]
[388641702,1759290632172,-300.0,0.00020972,2]
[388641703,1759290632181,-300.0,0.00020972,2]
[388641704,1759290632191,-300.0,0.00020972,2]
[388641705,1759290632205,-300.0,0.00020972,2]
[388641706,1759290632216,-1200.0,0.00020972,2]
[388641707,1759290632226,-503.24421874,0.00020973,2]
[388641708,1759290632235,-500.0,0.00020973,2]
[388641709,1759290632245,-515.04645431,0.00020973,2]
[388641710,1759290632254,-500.0,0.00020973,2]
[388641711,1759290632263,-500.0,0.00020977,2]
[388641712,1759290632273,-500.0,0.00020977,2]
[388641713,1759290632284,-500.0,0.00020977,2]
[388641714,1759290632293,-500.0,0.00020977,2]
[388641715,1759290632304,-500.0,0.00020977,2]
[388641716,1759290632320,-395.18815987,0.00020977,2]
[388641718,1759290632329,-500.0,0.00020977,2]
[388641720,1759290632338,-500.0,0.00020977,2]
[388641722,1759290632348,-500.0,0.00020977,2]
[388641724,1759290632357,-500.0,0.00020977,2]
[388641726,1759290632366,-500.0,0.00020977,2]
[388641728,1759290632375,-500.0,0.00020977,2]
[388641730,1759290632385,-500.0,0.00020977,2]
[388641731,1759290632395,-500.0,0.00020977,2]
[388641732,1759290632403,-255.63056901,0.00020977,2]
[388641733,1759290632413,-500.0,0.00020977,2]
[388641735,1759290632422,-500.0,0.00020977,2]
[388641737,1759290632431,-207.2009166,0.00020977,2]
[388641739,1759290632440,-378.35148187,0.00020977,2]
[388641741,1759290632449,-151.0,0.00020978,2]
[388641742,1759290632458,-500.0,0.00020978,2]
[388641743,1759290632468,-151.0,0.00020978,2]
[388641744,1759290632477,-500.0,0.00020978,2]
[388641745,1759290632487,-151.0,0.00020978,2]
[388641746,1759290632496,-500.0,0.00020978,2]
[388641747,1759290632507,-151.0,0.00020978,2]
[388641748,1759290632516,-500.0,0.00020978,2]
[388641749,1759290632526,-151.0,0.00020978,2]
[388641750,1759290632535,-500.0,0.00020978,2]
[388641751,1759290632544,-500.0,0.00020978,2]
[388641752,1759290632618,-151.0,0.00020978,2]
[388641753,1759290632628,-500.0,0.00020978,2]
[388641754,1759290632637,-500.0,0.00020978,2]
[388641755,1759290632646,-500.0,0.00020978,2]
[388641756,1759290632656,-151.0,0.00020978,2]
[388641757,1759290632665,-500.0,0.00020978,2]
[388641758,1759290632674,-500.0,0.00020978,2]
[388641759,1759290632683,-248.88793766,0.00020978,2]
[388641760,1759290632692,-500.0,0.00020978,2]
[388641761,1759290632701,-500.0,0.00020978,2]
[388641762,1759290632710,-500.0,0.00020978,2]
[388641763,1759290632719,-500.0,0.00020978,2]
[388641764,1759290632728,-500.0,0.00020978,2]
[388641765,1759290632737,-500.0,0.00020978,2]
[388641766,1759290632746,-500.0,0.00020978,2]
[388641767,1759290632755,-500.0,0.00020978,2]
[388641768,1759290632764,-500.0,0.00020978,2]
[388641769,1759290632773,-500.0,0.00020978,2]
[388641770,1759290632782,-500.0,0.00020978,2]
[388641771,1759290632791,-500.0,0.00020978,2]
[388641772,1759290632801,-500.0,0.00020978,2]
[388641773,1759290632810,-500.0,0.00020978,2]
[388641774,1759290632819,-500.0,0.00020978,2]
[388641775,1759290632828,-500.0,0.00020978,2]
[388641776,1759290632838,-500.0,0.00020978,2]
[388641777,1759290632847,-163.351897,0.00020978,2]
[388641778,1759290632856,-1200.0,0.00020981,2]
[388641779,1759290632865,-5267.42175339,0.0002099,2]
[388641780,1759290632874,-151.0,0.0002099,2]
[388641781,1759290632883,-151.0,0.0002099,2]
[388641782,1759290632892,-170.386274,0.0002099,2]
[388641783,1759290632901,-171.519526,0.0002099,2]
[388641784,1759290632910,-500.0,0.0002099,2]
[388641785,1759290632919,-1560.96174256,0.00021088,2]
[388641786,1759290632940,-599.03825744,0.00021088,2]
[388641787,1759290632949,-498.92004115,0.00021119,2]
[388641788,1759290632959,-357.0,0.00021147,2]
[388641789,1759290632968,-177.0,0.00021237,2]
[388641790,1759290632977,-500.00488324,0.00021264,2]
[388641791,1759290632987,-46.88531217,0.0002133,2]
[388641800,1759290637959,-151.0,0.00020978,2]
[388641801,1759290637969,-104.11468783,0.0002133,2]
[388641802,1759290637978,-151.0,0.0002133,2]
[388641803,1759290637988,-43.57005714,0.0002133,2]
[388641804,1759290637999,-107.42994286,0.0002133,2]
[388641805,1759290638015,-151.0,0.0002133,2]
[388641806,1759290638025,-151.0,0.0002133,2]
[388641807,1759290638034,-151.0,0.0002133,2]
[388641808,1759290638044,-153.34391067,0.0002133,2]
[388641809,1759290638054,-151.0,0.00021332,2]
[388641810,1759290638063,-151.0,0.00021332,2]
[388641811,1759290638073,-151.0,0.00021332,2]
[388641812,1759290638083,-191.64188122,0.00021332,2]
[388641813,1759290638103,-57.87274849,0.00021332,2]
[388641814,1759290638113,-152.14071217,0.00021332,2]
[388641815,1759290638122,-151.0,0.00021332,2]
[388641816,1759290638131,-151.0,0.00021332,2]
[388641817,1759290638141,-151.0,0.00021332,2]
[388641818,1759290638150,-151.0,0.00021332,2]
[388641819,1759290638160,-151.0,0.00021332,2]
[388641820,1759290638169,-1800.31824309,0.00021336,2]
[388641842,1759290640108,-359.68175691,0.00021336,2]
[388641843,1759290640117,-168.0,0.00021355,2]
[388641844,1759290640127,-293.36416222,0.00021363,10]
[388641845,1759290640136,-475.80180349,0.00021373,2]
[388641885,1759291832373,-168.0,0.00020841,2]
[388641886,1759291832382,-374.19003086,0.00020977,2]
[388641887,1759291832391,-500.1449743,0.00021,2]
[388641888,1759291832401,-330.0,0.00021039,2]
[388641889,1759291832409,-330.0,0.00021185,2]
[388641890,1759291832419,-816.1958544,0.0002126,2]
[388641891,1759291832427,-81.46914044,0.00021316,2]
[388641892,1759291832438,-248.53085956,0.00021316,2]
[388641893,1759291832447,-151.0,0.00021347,2]
[388641894,1759291832456,-500.0,0.00021347,2]
[388641895,1759291832465,-500.0,0.00021347,2]
[388641896,1759291832474,-500.0,0.00021347,2]
[388641897,1759291832482,-500.0,0.00021347,2]
[388641898,1759291832491,-99.66914044,0.00021347,2]
[388641944,1759291841097,-400.33085956,0.00021347,2]
[388641945,1759291841106,-500.0,0.00021347,2]
[388641946,1759291841115,-500.0,0.00021347,2]
[388641947,1759291841189,-645.20389846,0.00021347,2]
[388641948,1759291841198,-264.84603731,0.00021357,2]
[388641949,1759291841207,-300.0,0.00021357,2]
[388641950,1759291841216,-1200.0,0.00021357,2]
[388641951,1759291841225,-14424.6658465,0.00021358,2]
[388641959,1759291843749,-639.51450767,0.00021357,2]
[388641960,1759291843759,-210.57646221,0.00021357,2]
[388641961,1759291843768,-45.17504009,0.00021358,2]
[388641989,1759291874898,200.0,0.00034664,120]
[388641990,1759291879784,114286.81568638,0.00034664,120]
[388641996,1759292611283,159.0,0.000191,2]
[388642115,1759293126800,200.0,0.000284,120]
[388642117,1759293149736,300.0,0.000284,120]
[388642137,1759293360271,1022.78946342,0.00034665,60]
[388642138,1759293671219,154.45221,0.00019708,13]
[388642141,1759293730054,11798.94,0.00034665,90]
[388642146,1759294060228,1633.9,0.00028767,120]
[388642233,1759294232609,-154.45221,0.00020114,13]
[388642235,1759294232619,-153.64708999,0.00020444,29]
[388642238,1759294232630,-0.80512001,0.00020444,29]
[388642240,1759294232640,-154.45221,0.00020519,13]
[388642242,1759294232649,-3532.8388115,0.0002079,10]
[388642574,1759294238658,-2985.56,0.0002079,10]
[388642720,1759294266904,154.45221,0.00019708,13]
[388642721,1759294267898,154.45221,0.00019451,13]
[388642722,1759294268253,154.45221,0.00019194,13]
[388642723,1759294268592,154.45221,0.00018937,13]
[388642724,1759294268981,154.45221,0.0001868,13]
[388642726,1759294346175,500.0,0.00027397,120]
[388642728,1759294574233,300000.0,0.00034665,60]
[388642731,1759294730714,161.73671761,0.00018,2]
[388642734,1759294867557,154.452211,0.00019708,13]
[388642735,1759294867986,154.452211,0.00019398,13]
[388642736,1759294868353,154.452211,0.00019087,13]
[388642737,1759294868660,154.452211,0.00018777,13]
[388642741,1759294962385,500.0,0.00027397,120]
[388642748,1759295218803,150.0,0.00019178,2]
[388642749,1759295275455,500.0,0.00027397,120]
[388642750,1759295331847,153.91,0.000287,120]
[388642792,1759295431843,-5000.0,0.00020635,2]
[388642794,1759295431852,-168.0,0.00020635,2]
[388642804,1759295431936,-10840.07,0.0002068,10]
[388642805,1759295431946,-243.17430023,0.00020689,2]
[388642806,1759295431954,-99871.48646723,0.0002069,2]
[388642807,1759295431965,-399.70554934,0.0002069,2]
[388642810,1759295431976,-443.5621039,0.0002069,2]
[388642813,1759295432018,-3011.79494729,0.0002069,2]
[388642814,1759295432029,-65642.6662678,0.0002069,2]
[388642973,1759295443369,-282.77638006,0.0002068,10]
[388643210,1759295445982,-5516.52964478,0.0002068,10]
[388643618,1759295587919,500.0,0.00027397,120]
[388643633,1759295772705,-1200.0,0.0002,3]
[388643634,1759295783000,-264.84603731,0.0002,3]
[388643635,1759295785241,-300.0,0.0002,3]
[388643636,1759295788215,-14424.6658465,0.0002,3]
[388643637,1759295790251,-500.0,0.0002,3]
[388643638,1759295793489,-400.33085956,0.0002,3]
[388643639,1759295796041,-645.20389846,0.0002,3]
[388643640,1759295798634,-500.0,0.0002,3]
[388643641,1759295899745,500.0,0.00027397,120]
[388643643,1759296197095,1343.0,0.00019178,2]
[388643644,1759296209574,500.0,0.00027397,120]
[388643652,1759296520620,500.0,0.00027397,120]
[388643699,1759296631978,-5267.42175339,0.0001999,2]
[388643701,1759296631988,-1200.0,0.00019999,2]
[388643703,1759296631997,-1200.0,0.00019999,2]
[388643705,1759296632007,-9122.9170271,0.0002,3]
[388643730,1759296640004,-0.04655227,0.0002,3]
[388647227,1759296677156,999.99,0.00019166,2]
[388649726,1759296829810,500.0,0.00027397,120]
[388649728,1759297137784,500.0,0.00027397,120]
[388649729,1759297445512,500.0,0.00027397,120]
[388649730,1759297522984,158.0,0.0003466,60]
[388649731,1759297742169,1375.0713926,0.0003466,120]
[388649773,1759297832280,-1200.0,0.00019994,2]
[388649775,1759297832290,-1200.0,0.00019999,2]
[388649777,1759297832300,-3869.53728257,0.0002,3]
[388649780,1759297832310,-202.0,0.00020027,2]
[388649781,1759297832320,-140.05444709,0.00020027,2]
[388649784,1759297832331,-159.94555291,0.00020027,2]
[388649786,1759297832340,-204.62169984,0.00020028,2]
[388649789,1759297832363,-960.48203222,0.00020028,2]
[388649791,1759297832374,-246.89626794,0.00020028,2]
[388649793,1759297832385,-446.94920353,0.00020069,2]
[388649795,1759297832398,-168.0,0.00020286,2]
[388649797,1759297832407,-178.72832733,0.00020379,2]
[388649920,1759297838073,-551.34347856,0.00020379,2]
[388649921,1759297838082,-250.43857119,0.00020387,2]
[388649922,1759297838092,-249.67582135,0.00020478,2]
[388649923,1759297838101,-620.25405756,0.00020478,2]
[388649924,1759297838110,-500.0,0.00020478,2]
[388649925,1759297838120,-500.0,0.00020478,2]
[388649926,1759297838129,-500.0,0.00020478,2]
[388649927,1759297838138,-500.0,0.00020478,2]
[388649928,1759297838147,-500.0,0.00020478,2]
[388649929,1759297838156,-500.0,0.00020478,2]
[388649930,1759297838165,-191.72179437,0.00020478,2]
[388649931,1759297838174,-500.0,0.00020478,2]
[388649932,1759297838183,-502.4721293,0.00020478,2]
[388649934,1759297838192,-500.0,0.00020478,2]
[388649935,1759297838202,-500.0,0.00020478,2]
[388649936,1759297838211,-500.0,0.00020478,2]
[388649937,1759297838220,-500.0,0.00020478,2]
[388649938,1759297838230,-203.95917946,0.00020478,2]
[388649939,1759297838239,-500.0,0.00020478,2]
[388649940,1759297838248,-500.0,0.00020478,2]
[388649941,1759297838257,-536.55661554,0.00020478,2]
[388649942,1759297838267,-500.0,0.00020478,2]
[388649943,1759297838277,-500.0,0.00020478,2]
[388649944,1759297838286,-260.23322757,0.00020478,2]
[388649945,1759297838295,-368.18766341,0.00020478,2]
[388649946,1759297838305,-500.0,0.00020478,2]
[388649947,1759297838314,-500.0,0.00020478,2]
[388649948,1759297838323,-396.74205141,0.00020478,2]
[388649949,1759297838332,-500.0,0.00020478,2]
[388649950,1759297838341,-500.0,0.00020478,2]
[388649951,1759297838351,-500.0,0.00020478,2]
[388649952,1759297838361,-500.0,0.00020478,2]
[388649953,1759297838370,-151.0,0.00020479,2]
[388649954,1759297838380,-155.157909,0.00020479,2]
[388649955,1759297838392,-1106.69567646,0.0002048,2]
[388649956,1759297838465,-151.0,0.0002048,2]
[388649957,1759297838476,-151.0,0.0002048,2]
[388649958,1759297838485,-151.0,0.00020481,2]
[388649959,1759297838494,-151.0,0.00020481,2]
[388649960,1759297838503,-151.0,0.00020481,2]
[388649961,1759297838512,-500.0,0.00020481,2]
[388649962,1759297838521,-155.164207,0.00020483,2]
[388649963,1759297838531,-1846.31364366,0.00020524,2]
[388649964,1759297838554,-351.91826975,0.00020524,2]
[388650000,1759297933437,2500.0,0.0003466,60]
[388650002,1759298215231,-500.0,0.00019999,2]
[388650003,1759298215253,-335.21190264,0.00020069,2]
[388650004,1759298215274,-500.0,0.000201,2]
[388650005,1759298215295,-5000.0,0.00020127,2]
[388650006,1759298215320,-168.0,0.0002024,2]
[388650007,1759298215344,-500.0,0.00020273,2]
[388650008,1759298215367,-1200.0,0.00020423,2]
[388650009,1759298215391,-300.0,0.00020423,2]
[388650010,1759298215413,-7940.28625464,0.00020424,2]